bitfinex/quotes_SOLUSD_20241111
["timestamp","ask_amount","ask_price","bid_price","bid_amount"]
[1731326110308,23.776884,216.89,216.85,10.67239265]
[1731326110510,23.776884,216.91,216.85,10.67239265]
[1731326110810,34.44927665,216.91,216.86,4.6112]
[1731326111019,34.44927665,216.91,216.86,16.1393]
[1731326111726,23.776884,216.91,216.86,16.1393]
[1731326112225,23.776884,216.92,216.86,26.81169265]
[1731326112434,23.776884,216.92,216.87,10.67239265]
[1731326112926,23.776884,216.92,216.88,4.6108]
[1731326113230,23.776884,216.93,216.88,4.6108]
[1731326113419,10.67239265,216.92,216.88,4.6108]
[1731326113619,23.776884,216.91,216.86,16.1391]
[1731326113821,6.6633,216.96,216.86,26.81149265]
[1731326114024,10.67239265,216.93,216.86,26.81149265]
[1731326114415,23.776884,216.95,216.86,26.81149265]
[1731326114416,10.67239265,216.94,216.87,10.67239265]
[1731326115436,23.776884,216.93,216.88,4.6108]
[1731326116220,23.776884,216.94,216.88,4.6108]
[1731326117245,23.776884,216.94,216.88,15.28319265]
[1731326117430,23.776884,216.94,216.88,26.81029265]
[1731326118228,23.776884,216.94,216.81,4.81013224]
[1731326118552,23.776884,216.94,216.87,10.67239265]
[1731326119127,10.67239265,216.9,216.82,39.203]
[1731326119310,23.776884,216.89,216.83,10.67239265]
[1731326119739,23.776884,216.9,216.84,10.67239265]
[1731326119915,23.776884,216.9,216.85,10.67239265]
[1731326120116,23.776884,216.91,216.85,10.67239265]
[1731326120317,23.776884,216.91,216.86,15.28359265]
[1731326120522,23.776884,216.92,216.86,15.28359265]
[1731326120916,34.44927665,216.92,216.86,4.6112]
[1731326121346,34.44927665,216.92,216.85,10.67239265]
[1731326121637,34.44927665,216.92,216.86,10.67239265]
[1731326121945,23.776884,216.92,216.86,10.67239265]
[1731326122425,34.44927665,216.92,216.86,4.6111]
[1731326122628,10.67239265,216.91,216.86,4.6111]
[1731326122832,23.776884,216.9,216.86,4.6111]
[1731326123034,23.776884,216.9,216.89,10.67239265]
[1731326123235,23.776884,216.9,216.86,16.1392]
[1731326123548,23.776884,216.9,216.89,10.67239265]
[1731326124246,23.776884,216.9,216.86,26.81159265]
[1731326124445,23.776884,216.9,216.86,11.5281]
[1731326124648,23.776884,216.9,216.84,10.67239265]
[1731326124952,23.776884,216.9,216.82,16.1421]
[1731326125254,23.776884,216.9,216.84,10.67239265]
[1731326125920,34.44927665,216.9,216.83,10.67239265]
[1731326126334,23.776884,216.9,216.84,10.67239265]
[1731326126529,28.387284,216.9,216.84,10.67239265]
[1731326127246,39.05967665,216.9,216.82,16.1421]
[1731326127425,39.05967665,216.9,216.83,10.67239265]
[1731326127628,28.386784,216.92,216.87,10.67239265]
[1731326127934,23.776884,216.92,216.88,10.67239265]
[1731326128327,22.9129,216.93,216.88,10.67239265]
[1731326128519,22.9129,216.93,216.87,10.67239265]
[1731326128720,10.67239265,216.9,216.83,16.1415]
[1731326128921,10.67239265,216.9,216.84,10.67239265]
[1731326129126,20.0,216.92,216.87,10.67239265]
[1731326129752,23.776884,216.91,216.87,10.67239265]
[1731326129932,23.776884,216.91,216.81,4.81013224]
[1731326130140,23.776884,216.89,216.84,10.67239265]
[1731326130434,23.776884,216.89,216.86,10.67239265]
[1731326130635,23.776884,216.89,216.81,9.42243224]
[1731326130843,23.776884,216.89,216.86,10.67239265]
[1731326131159,23.776884,216.89,216.85,10.67239265]
[1731326131520,23.776884,216.89,216.81,16.34093224]
[1731326131521,28.387484,216.89,216.81,20.95303224]
[1731326131845,28.387484,216.89,216.85,10.67239265]
[1731326132051,23.776884,216.89,216.85,10.67239265]
[1731326132229,23.776884,216.89,216.86,10.67239265]
[1731326132638,23.776884,216.89,216.84,10.67239265]
[1731326133330,23.776884,216.89,216.81,16.34093224]
[1731326133530,23.776884,216.89,216.84,10.67239265]
[1731326133746,28.387584,216.89,216.83,10.67239265]
[1731326133949,28.387584,216.89,216.84,10.67239265]
[1731326134522,28.387584,216.89,216.82,4.6119]
[1731326134721,20.0,216.9,216.82,4.6119]
[1731326134722,4.6089,216.97,216.88,10.67239265]
[1731326134927,4.6089,216.97,216.92,10.67239265]
[1731326135541,15.608,216.85,216.79,1.40955901]
[1731326135828,10.67239265,216.82,216.79,4.81274877]
[1731326136027,23.776884,216.84,216.79,15.48514142]
[1731326136239,23.776884,216.86,216.81,10.67239265]
[1731326136528,23.776884,216.86,216.82,10.67239265]
[1731326137149,23.776884,216.88,216.82,10.67239265]
[1731326137348,34.44927665,216.88,216.81,15.28449265]
[1731326138031,23.776884,216.88,216.82,15.28439265]
[1731326138232,23.776884,216.88,216.82,16.1423]
[1731326138437,23.776884,216.89,216.85,10.67239265]
[1731326138838,23.776884,216.89,216.84,10.67239265]
[1731326139241,23.776884,216.89,216.83,10.67239265]
[1731326139637,23.776884,216.89,216.79,4.81180015]
[1731326139638,23.776884,216.87,216.8,4.6125]
[1731326139833,23.776884,216.87,216.81,10.67239265]
[1731326140330,23.776884,216.87,216.82,10.67239265]
[1731326142653,10.67239265,216.97,216.86,10.67239265]
[1731326142965,15.28109265,216.98,216.91,10.67239265]
[1731326143137,4.6087,216.98,216.92,10.67239265]
[1731326143331,4.6087,216.98,216.91,10.67239265]
[1731326143332,15.28109265,216.98,216.91,10.67239265]
[1731326143745,10.67239265,216.99,216.92,10.67239265]
[1731326143953,10.67239265,216.97,216.82,39.2029]
[1731326144157,10.67239265,216.97,216.9,10.67239265]
[1731326144952,15.28139265,216.97,216.9,10.67239265]
[1731326145346,23.776884,216.96,216.9,10.67239265]
[1731326145741,23.776884,216.96,216.89,4.6104]
[1731326145742,23.776884,216.96,216.91,10.67239265]
[1731326145942,23.776884,216.97,216.91,10.67239265]
[1731326146738,34.44927665,216.97,216.9,10.67239265]
[1731326146948,34.44927665,216.97,216.91,4.6102]
[1731326147142,39.05817665,216.97,216.91,4.6102]
[1731326149052,23.776884,216.98,216.93,10.67239265]
[1731326149441,34.44927665,216.98,216.92,10.67239265]
[1731326149964,10.67239265,216.96,216.89,32.6394]
[1731326150257,23.776884,216.93,216.89,11.5265]
[1731326150456,34.44927665,216.93,216.86,15.28339265]
[1731326150638,10.67239265,216.9,216.85,11.5286]
[1731326150840,23.776884,216.88,216.85,11.5286]
[1731326151048,23.776884,216.88,216.83,15.28419265]
[1731326151351,10.67239265,216.87,216.83,4.6118]
[1731326151741,34.44927665,216.88,216.83,16.1415]
[1731326153061,23.776884,216.88,216.83,26.81389265]
[1731326153840,23.776884,216.89,216.83,26.81389265]
[1731326154156,34.44927665,216.89,216.83,10.67239265]
[1731326154540,10.67239265,216.88,216.82,10.67239265]
[1731326154773,23.776884,216.87,216.81,4.80979811]
[1731326155061,34.44927665,216.87,216.81,4.80979811]
[1731326155267,21.776884,216.87,216.81,15.48219076]
[1731326155563,21.776884,216.87,216.83,16.1415]
[1731326155863,10.67239265,216.89,216.83,16.1415]
[1731326156442,24.6085,216.99,216.86,10.67239265]
[1731326156654,10.67239265,216.93,216.86,10.67239265]
[1731326156940,10.67239265,216.92,216.87,4.611]
[1731326157738,23.776884,216.91,216.87,4.611]
[1731326159061,34.44927665,216.91,216.86,11.5278]
[1731326159260,34.44927665,216.91,216.86,16.139]
[1731326159663,23.776884,216.9,216.86,16.139]
[1731326160751,34.44927665,216.9,216.86,11.5278]
[1731326161749,23.776884,216.9,216.86,11.5278]
[1731326162944,20.0,216.99,216.86,11.5278]
[1731326163151,15.296,217.0,216.86,22.20019265]
[1731326163152,10.67239265,216.94,216.86,22.20019265]
[1731326163356,23.776884,216.93,216.86,22.20019265]
[1731326163768,34.44927665,216.93,216.86,22.20019265]
[1731326163968,23.776884,216.93,216.87,10.67239265]
[1731326164259,23.776884,216.93,216.88,16.1379]
[1731326164460,10.67239265,216.92,216.88,16.1379]
[1731326164655,23.776884,216.89,216.82,23.0606]
[1731326164860,23.776884,216.89,216.85,10.67239265]
[1731326165064,23.776884,216.91,216.85,10.67239265]
[1731326165648,10.67239265,216.96,216.89,10.67239265]
[1731326165856,34.44927665,216.95,216.88,10.67239265]
[1731326166050,15.296,217.0,216.88,16.1379]
[1731326166051,19.9043,217.0,216.88,16.1379]
[1731326166254,19.9043,217.0,216.9,10.67239265]
[1731326166255,10.67239265,216.97,216.9,10.67239265]
[1731326166475,10.67239265,216.95,216.88,26.81029265]
[1731326166769,10.67239265,216.96,216.89,10.67239265]
[1731326167264,23.776884,216.95,216.89,10.67239265]
[1731326167969,23.776884,216.95,216.9,22.19839265]
[1731326168169,34.44927665,216.95,216.88,4.6108]
[1731326168371,10.67239265,216.92,216.88,4.6108]
[1731326168964,10.67239265,216.93,216.88,4.6108]
[1731326169165,10.67239265,216.93,216.86,10.67239265]
[1731326169472,10.67239265,216.93,216.87,16.1386]
[1731326170247,10.67239265,216.91,216.87,11.5276]
[1731326170459,23.776884,216.95,216.88,10.67239265]
[1731326170650,34.44927665,216.95,216.88,10.67239265]
[1731326170961,34.44927665,216.95,216.87,26.81099265]
[1731326170962,10.67239265,216.94,216.87,26.81099265]
[1731326171145,23.776884,216.93,216.87,26.81099265]
[1731326171947,23.776884,216.95,216.9,10.67239265]
[1731326172153,10.67239265,216.99,216.92,10.67239265]
[1731326172670,10.67239265,216.98,216.92,10.67239265]
[1731326173966,10.67239265,216.97,216.87,34.5828]
[1731326174169,10.67239265,216.97,216.91,10.67239265]
[1731326174380,4.6083,217.0,216.87,34.5828]
[1731326174381,34.44927665,216.94,216.87,11.5276]
[1731326174561,10.67239265,216.94,216.87,22.19999265]
[1731326174762,10.67239265,216.93,216.87,11.5276]
[1731326175577,10.67239265,216.93,216.87,22.19999265]
[1731326176255,10.67239265,216.94,216.88,10.67239265]
[1731326176575,23.776884,216.93,216.89,4.6106]
[1731326176987,34.44927665,216.93,216.87,11.5276]
[1731326177315,34.44927665,216.91,216.87,16.1386]
[1731326177884,23.776884,216.91,216.87,16.1386]
[1731326178263,23.776884,216.91,216.87,11.5276]
[1731326178966,10.67239265,216.92,216.87,11.5276]
[1731326179160,10.67239265,216.91,216.82,15.9134]
[1731326179364,10.67239265,216.88,216.84,4.6116]
[1731326179567,10.67239265,216.88,216.82,15.9134]
[1731326179777,10.67239265,216.88,216.83,16.1416]
[1731326180362,10.67239265,216.86,216.83,11.5297]
[1731326180882,10.67239265,216.87,216.83,16.1416]
[1731326181560,23.776884,216.91,216.83,16.1416]
[1731326181760,4.6104,216.9,216.83,16.1416]
[1731326181961,10.67239265,216.87,216.83,16.1416]
[1731326182181,11.5239,216.94,216.83,16.1416]
[1731326182182,15.9622,216.99,216.86,10.67239265]
[1731326182369,10.67239265,216.94,216.87,10.67239265]
[1731326182687,15.9622,216.99,216.83,39.2011]
[1731326182688,10.67239265,216.96,216.89,10.67239265]
[1731326182854,15.9622,216.99,216.91,10.67239265]
[1731326183060,10.67239265,216.98,216.92,10.67239265]
[1731326183459,10.67239265,216.98,216.91,10.67239265]
[1731326183663,15.0346,217.04,216.92,10.67239265]
[1731326183883,10.67239265,217.0,216.93,10.67239265]
[1731326184265,10.67239265,216.99,216.92,10.67239265]
[1731326184969,10.67239265,216.95,216.87,39.1938]
[1731326185162,10.67239265,216.96,216.89,10.67239265]
[1731326185479,10.67239265,216.97,216.9,10.67239265]
[1731326185678,23.776884,216.96,216.9,10.67239265]
[1731326186058,23.776884,216.96,216.91,16.1357]
[1731326186558,23.776884,216.97,216.91,26.80809265]
[1731326187783,15.0346,217.04,216.94,10.67239265]
[1731326187988,10.67239265,217.03,216.97,16.1312]
[1731326188191,10.67239265,216.98,216.91,26.08539265]
[1731326188486,10.67239265,216.96,216.92,16.1347]
[1731326188777,19.6421,217.04,216.92,16.1347]
[1731326188981,10.67239265,216.97,216.92,16.1347]
[1731326189185,10.67239265,216.96,216.92,16.1347]
[1731326190981,10.67239265,216.97,216.92,16.1347]
[1731326191170,23.776884,216.96,216.92,16.1347]
[1731326192265,10.67239265,216.99,216.92,26.80709265]
[1731326192474,15.1354,217.17,216.98,10.67239265]
[1731326192687,18.91558482,217.16,216.99,16.4093]
[1731326192892,10.67239265,217.07,217.0,10.67239265]
[1731326193075,10.67239265,217.08,217.01,10.67239265]
[1731326193592,10.67239265,217.07,217.0,10.67239265]
[1731326193768,10.67239265,217.06,216.99,16.4093]
[1731326193967,10.67239265,217.06,216.99,27.08169265]
[1731326194169,0.67239265,217.06,216.99,27.08169265]
[1731326194371,10.67239265,217.07,217.0,26.80129265]
[1731326194591,10.67239265,217.07,217.01,10.67239265]
[1731326195379,10.67239265,217.07,217.0,26.80129265]
[1731326195888,10.67239265,217.07,217.0,16.1289]
[1731326196083,10.67239265,217.07,217.0,26.80129265]
[1731326197177,10.67239265,217.06,217.0,16.1289]
[1731326197690,10.67239265,217.05,217.0,16.1289]
[1731326198067,10.67239265,217.03,217.0,16.1289]
[1731326198273,10.67239265,217.01,217.0,11.5207]
[1731326199296,10.67239265,217.01,216.95,16.1326]
[1731326200681,10.67239265,216.96,216.95,16.1326]
[1731326200871,10.67239265,216.98,216.95,16.1326]
[1731326201379,23.776884,217.04,216.95,16.1326]
[1731326201572,10.67239265,216.99,216.95,16.1326]
[1731326201999,26.833,217.14,216.96,10.67239265]
[1731326202172,10.67239265,217.02,216.96,10.67239265]
[1731326202490,10.67239265,217.01,216.95,10.67239265]
[1731326203591,10.67239265,217.01,216.96,16.1319]
[1731326203782,10.67239265,217.02,216.96,16.1319]
[1731326205507,10.67239265,217.0,216.96,16.1319]
[1731326205675,10.67239265,216.98,216.96,16.1319]
[1731326206596,10.67239265,216.99,216.96,16.1319]
[1731326206896,10.67239265,216.99,216.96,11.5228]
[1731326210785,4.6074,217.04,216.96,11.5228]
[1731326210786,10.67239265,217.0,216.96,11.5228]
[1731326212400,6.0732,217.1,216.96,11.5228]
[1731326212698,10.67239265,217.04,216.98,10.67239265]
[1731326212896,10.67239265,217.03,216.96,22.19519265]
[1731326213686,10.67239265,217.03,216.96,26.80429265]
[1731326214104,4.6077,217.03,216.89,4.7991938]
[1731326214293,10.67239265,216.92,216.9,19.7202]
[1731326214507,10.67239265,216.94,216.9,31.2462]
[1731326214846,15.2783,217.05,216.9,31.4462]
[1731326215286,19.8855,217.05,216.9,31.3462]
[1731326215809,16.67880424,216.99,216.92,16.67880424]
[1731326216182,19.8855,217.05,216.9,54.2982]
[1731326216183,16.67880424,216.97,216.9,47.92500424]
[1731326216405,16.67880424,216.97,216.9,31.2462]
[1731326216592,16.67880424,216.96,216.9,31.2462]
[1731326217288,16.67880424,216.97,216.9,47.92500424]
[1731326218804,30.0,216.93,216.9,47.92500424]
[1731326220208,30.0,216.93,216.9,16.1363]
[1731326221608,27.72277504,216.93,216.9,16.1363]
[1731326221809,16.67880424,216.96,216.9,16.1363]
[1731326222198,16.67880424,216.97,216.9,32.81510424]
[1731326222692,30.0,216.92,216.9,32.81510424]
[1731326223308,30.0,216.92,216.91,16.67880424]
[1731326223810,16.67880424,216.99,216.91,16.67880424]
[1731326224114,16.67880424,216.99,216.92,16.67880424]
[1731326224619,16.67880424,216.98,216.93,16.1341]
[1731326224796,30.0,216.94,216.88,21.28950424]
[1731326225112,30.0,216.94,216.88,32.81600424]
[1731326225310,30.0,216.94,216.89,16.67880424]
[1731326225505,30.0,216.94,216.88,32.81600424]
[1731326225697,30.0,216.94,216.91,16.67880424]
[1731326226695,30.0,216.94,216.93,16.67880424]
[1731326227310,16.67880424,217.02,216.93,16.67880424]
[1731326227613,16.67880424,217.02,216.96,16.67880424]
[1731326227808,30.0,216.97,216.96,16.67880424]
[1731326228208,16.67880424,217.02,216.96,16.67880424]
[1731326228392,16.67880424,217.07,217.0,16.67880424]
[1731326228592,16.67880424,217.07,217.01,16.1282]
[1731326229601,23.776884,217.06,217.01,16.1282]
[1731326229802,40.45568824,217.06,217.01,16.1282]
[1731326230007,16.67880424,217.04,217.01,16.1282]
[1731326230411,23.776884,217.06,217.01,11.5202]
[1731326230412,40.45568824,217.02,217.01,11.5202]
[1731326230907,23.776884,217.02,216.97,32.81000424]
[1731326231213,23.776884,217.03,216.97,32.81000424]
[1731326232411,40.45568824,217.03,216.97,16.1312]
[1731326233125,40.45568824,217.0,216.97,16.1312]
[1731326234616,16.67880424,217.01,216.97,11.5223]
[1731326234827,30.0,216.99,216.97,11.5223]
[1731326235422,46.67880424,216.99,216.97,11.5223]
[1731326235613,16.67880424,216.98,216.94,16.1334]
[1731326235999,30.0,216.99,216.94,16.1334]
[1731326236000,46.67880424,216.99,216.94,16.1334]
[1731326236201,30.0,216.99,216.94,32.81220424]
[1731326236408,30.0,216.99,216.95,16.67880424]
[1731326236622,30.0,216.99,216.96,16.67880424]
[1731326236826,10.66987182,217.03,216.96,10.66987182]
[1731326237026,23.776884,217.02,216.96,10.66987182]
[1731326237209,4.6066,217.08,216.97,10.66987182]
[1731326237527,10.66987182,217.04,216.99,16.1297]
[1731326238033,10.66987182,217.03,216.99,16.1297]
[1731326238922,10.66987182,217.03,216.99,11.5212]
[1731326239129,10.66987182,217.0,216.95,16.1323]
[1731326239324,10.66987182,216.98,216.95,16.1323]
[1731326239505,10.66987182,216.99,216.95,16.1323]
[1731326239707,10.66987182,217.0,216.95,16.1323]
[1731326239901,23.776884,217.05,216.95,16.1323]
[1731326239902,10.66987182,217.01,216.95,16.1323]
[1731326240525,10.66987182,217.0,216.95,16.1323]
[1731326242122,10.66987182,216.98,216.95,16.1323]
[1731326243427,10.66987182,216.98,216.95,16.1325]
[1731326243632,10.66987182,216.96,216.92,4.6099]
[1731326243815,10.66987182,216.97,216.92,4.6099]
[1731326244016,10.66987182,216.97,216.92,16.1348]
[1731326244213,10.66987182,216.96,216.92,16.1348]
[1731326244922,10.66987182,216.96,216.92,11.5249]
[1731326245230,23.776884,216.98,216.92,11.5249]
[1731326245414,10.66987182,216.96,216.92,11.5249]
[1731326245616,34.44675582,216.98,216.92,11.5249]
[1731326245816,23.776884,217.01,216.93,10.66987182]
[1731326246119,23.776884,217.01,216.92,11.5249]
[1731326246120,10.66987182,217.01,216.94,10.66987182]
[1731326246307,22.4261,217.11,216.97,10.66987182]
[1731326246507,10.66987182,217.04,216.97,10.66987182]
[1731326246726,4.6061,217.1,216.98,10.66987182]
[1731326248739,10.66987182,217.09,217.02,10.66987182]
[1731326249035,4.6058,217.12,217.0,28.1843436]
[1731326249036,16.6636436,217.07,217.0,28.1843436]
[1731326249235,16.6636436,217.1,217.03,16.6636436]
[1731326249823,16.6636436,217.06,217.0,28.1843436]
[1731326250529,16.6636436,217.08,217.01,16.6636436]
[1731326250830,16.6636436,217.08,217.02,16.1274]
[1731326251136,16.6636436,217.09,217.02,32.7910436]
[1731326251938,16.6636436,217.08,217.02,16.1274]
[1731326252322,16.6636436,217.07,217.02,16.1274]
[1731326252732,16.6636436,217.08,217.02,16.1274]
[1731326252934,16.6636436,217.09,217.02,32.7910436]
[1731326253635,16.6636436,217.08,217.02,16.1274]
[1731326254326,16.6636436,217.09,217.02,32.7910436]
[1731326254525,16.6636436,217.07,217.02,16.1274]
[1731326255043,16.6636436,217.08,217.02,16.1274]
[1731326255215,4.6059,217.12,217.02,32.7910436]
[1731326255216,16.6636436,217.09,217.02,32.7910436]
[1731326255420,16.6636436,217.1,217.03,16.6636436]
[1731326255642,16.6636436,217.09,217.02,32.7910436]
[1731326255940,16.6636436,217.1,217.03,16.6636436]
[1731326256936,16.6636436,217.1,217.04,16.126]
[1731326257338,16.6636436,217.11,217.04,32.7896436]
[1731326258535,15.6052,217.13,217.03,16.6636436]
[1731326258536,16.6636436,217.1,217.03,16.6636436]
[1731326258929,16.6636436,217.11,217.03,16.6636436]
[1731326259528,16.6636436,217.11,217.04,16.126]
[1731326259929,16.6636436,217.12,217.05,16.6636436]
[1731326260528,16.6636436,217.11,217.04,32.7896436]
[1731326261239,16.6636436,217.11,217.04,16.126]
[1731326261755,16.6636436,217.1,217.04,16.126]
[1731326262131,16.6636436,217.11,217.04,32.7896436]
[1731326263127,16.6636436,217.11,217.03,16.6636436]
[1731326263626,4.6051,217.15,217.03,16.6636436]
[1731326263627,16.6636436,217.1,217.03,16.6636436]
[1731326263827,16.6636436,217.11,217.04,16.6636436]
[1731326264042,16.6636436,217.09,217.02,16.6636436]
[1731326265248,16.6636436,217.09,217.03,16.1267]
[1731326266050,23.776884,217.14,217.04,16.6636436]
[1731326266260,16.4099,217.18,217.06,16.6636436]
[1731326266261,16.6636436,217.13,217.06,16.6636436]
[1731326266548,16.6636436,217.11,217.04,32.2369436]
[1731326267544,16.6636436,217.12,217.05,32.7888436]
[1731326267750,16.6636436,217.13,217.06,16.6636436]
[1731326268133,16.6636436,217.14,217.06,16.6636436]
[1731326268630,16.6636436,217.13,217.06,16.6636436]
[1731326269237,16.6636436,217.13,217.07,16.1238]
[1731326269857,16.6636436,217.13,217.07,32.7874436]
[1731326270158,16.6636436,217.17,217.1,16.6636436]
[1731326270335,16.6636436,217.17,217.09,16.6636436]
[1731326270654,16.6636436,217.16,217.09,16.6636436]
[1731326270849,10.65776101,217.16,217.09,10.65776101]
[1731326271051,10.65776101,217.17,217.1,16.1215]
[1731326271434,10.65776101,217.15,217.1,16.1215]
[1731326271628,4.6029,217.25,217.1,16.1215]
[1731326271629,10.65776101,217.13,217.1,16.1215]
[1731326272038,10.65776101,217.14,217.1,16.1215]
[1731326274255,10.65776101,217.14,217.07,23.034]
[1731326274554,10.65776101,217.14,217.07,33.69176101]
[1731326275348,0.1,217.24,217.07,33.69176101]
[1731326275349,15.828129,217.29,217.13,10.65776101]
[1731326275539,10.65776101,217.19,217.12,10.65776101]
[1731326275740,10.65776101,217.18,217.11,10.65776101]
[1731326276345,4.6023,217.28,217.12,10.65776101]
[1731326276541,10.65776101,217.2,217.13,10.65776101]
[1731326276854,10.65776101,217.19,217.12,10.65776101]
[1731326277942,10.65776101,217.19,217.13,16.1193]
[1731326278957,4.6034,217.23,217.13,16.1193]
[1731326279262,10.65776101,217.19,217.13,16.1193]
[1731326279462,10.65776101,217.19,217.13,22.17156101]
[1731326282147,10.65776101,217.19,217.13,26.77706101]
[1731326284262,20.0,217.26,217.13,26.77706101]
[1731326284263,10.65776101,217.2,217.13,26.77706101]
[1731326285759,4.6029,217.26,217.16,10.65776101]
[1731326285973,10.65776101,217.19,217.13,16.1193]
[1731326286260,10.65776101,217.16,217.13,16.1193]
[1731326286663,15.728129,217.29,217.13,16.1193]
[1731326286844,15.728129,217.29,217.17,10.65776101]
[1731326286845,10.65776101,217.24,217.17,10.65776101]
[1731326287154,20.330229,217.29,217.23,10.65776101]
[1731326287155,0.295329,217.29,217.23,10.65776101]
[1731326287360,30.0,217.24,217.21,31.7101]
[1731326287562,0.295329,217.29,217.21,31.7101]
[1731326287868,0.295329,217.29,217.27,10.65776101]
[1731326288068,0.295329,217.29,217.26,10.65776101]
[1731326288255,30.295329,217.29,217.26,10.65776101]
[1731326288766,0.295329,217.29,217.26,10.65776101]
[1731326289139,4.6011,217.34,217.25,11.5071]
[1731326289140,4.6011,217.34,217.27,10.65776101]
[1731326289340,10.65776101,217.32,217.26,10.65776101]
[1731326289673,10.65776101,217.31,217.25,22.16486101]
[1731326289845,10.65776101,217.31,217.25,26.76776101]
[1731326290044,4.6009,217.35,217.26,10.65776101]
[1731326290250,10.65776101,217.32,217.26,10.65776101]
[1731326290452,23.776884,217.38,217.28,10.65776101]
[1731326290651,16.337,217.4,217.3,10.65776101]
[1731326290966,16.337,217.4,217.29,10.65776101]
[1731326290967,10.65776101,217.35,217.29,10.65776101]
[1731326291340,10.65776101,217.34,217.25,39.1249]
[1731326291545,10.65776101,217.34,217.27,10.65776101]
[1731326291764,10.65776101,217.34,217.28,4.6023]
[1731326291963,4.6,217.39,217.29,10.65776101]
[1731326292143,1.43465488,217.45,217.31,10.65776101]
[1731326292345,0.2,217.47,217.31,10.65776101]
[1731326292346,4.5983,217.47,217.38,10.65776101]
[1731326292545,4.5972,217.52,217.39,10.65776101]
[1731326292761,3.14294366,217.56,217.51,10.65776101]
[1731326292950,7.73934366,217.56,217.46,15.0353]
[1731326293151,7.73934366,217.56,217.46,10.65776101]
[1731326293350,7.73934366,217.56,217.49,10.65776101]
[1731326293351,13.80070467,217.56,217.49,10.65776101]
[1731326293663,3.14294366,217.56,217.5,10.65776101]
[1731326293848,3.14294366,217.56,217.49,10.65776101]
[1731326293849,10.65776101,217.55,217.49,10.65776101]
[1731326294051,10.65776101,217.55,217.48,10.65776101]
[1731326294247,10.65776101,217.55,217.45,39.0886]
[1731326294248,3.14294366,217.56,217.47,0.1]
[1731326294457,10.65776101,217.53,217.45,39.0886]
[1731326294652,10.65776101,217.53,217.45,49.74636101]
[1731326294875,7.73934366,217.56,217.45,16.0955]
[1731326295071,3.14294366,217.56,217.45,16.0955]
[1731326295248,3.14294366,217.56,217.46,16.59562121]
[1731326295448,16.59562121,217.54,217.47,16.59562121]
[1731326295754,16.59562121,217.54,217.48,16.0934]
[1731326296156,3.14294366,217.56,217.48,16.0934]
[1731326296362,16.59562121,217.54,217.48,16.0934]
[1731326296953,16.59562121,217.52,217.45,21.19412121]
[1731326297271,16.59562121,217.5,217.45,4.5985]
[1731326297442,3.14294366,217.56,217.5,0.1]
[1731326297762,3.14294366,217.56,217.47,15.0743]
[1731326297964,3.14294366,217.56,217.45,16.0953]
[1731326298549,7.73944366,217.56,217.45,16.0953]
[1731326298749,16.59562121,217.47,217.45,16.0953]
[1731326298952,24.33506487,217.56,217.45,16.0953]
[1731326298953,16.59562121,217.48,217.45,16.0953]
[1731326299853,16.59562121,217.47,217.45,16.0953]
[1731326300567,16.59562121,217.46,217.45,11.4968]
[1731326300769,16.59562121,217.48,217.45,11.4968]
[1731326301066,16.59562121,217.49,217.42,16.59562121]
[1731326301465,16.59562121,217.48,217.42,16.59562121]
[1731326302166,16.59562121,217.47,217.41,16.59562121]
[1731326302372,16.59562121,217.47,217.4,16.59562121]
[1731326302551,16.59562121,217.46,217.42,11.4984]
[1731326302870,16.59562121,217.46,217.39,39.59572121]
[1731326302871,16.59562121,217.44,217.37,11.5009]
[1731326303167,22.3792,217.54,217.33,6.6217]
[1731326303168,0.1,217.52,217.33,6.6217]
[1731326303368,23.876884,217.53,217.33,39.32162121]
[1731326303577,23.776884,217.51,217.33,22.726]
[1731326303970,16.59562121,217.4,217.33,39.32162121]
[1731326304271,16.59562121,217.37,217.33,22.726]
[1731326304656,16.59562121,217.38,217.33,22.726]
[1731326305059,16.59562121,217.45,217.37,16.59562121]
[1731326305357,16.59562121,217.45,217.39,16.59562121]
[1731326305671,4.5966,217.55,217.34,0.1]
[1731326305672,16.59562121,217.44,217.34,0.1]
[1731326305969,16.59562121,217.44,217.37,16.59562121]
[1731326307672,19.83856487,217.56,217.38,32.69632121]
[1731326307673,16.59562121,217.45,217.38,32.69632121]
[1731326308256,16.59562121,217.44,217.38,16.1007]
[1731326309572,4.5977,217.5,217.38,16.1007]
[1731326309573,16.59562121,217.47,217.4,16.59562121]